bitfinex/quotes_SOLUSD_20251117
["timestamp","ask_amount","ask_price","bid_price","bid_amount"]
[1763395865748,0.7,135.48,135.41,1.93593088]
[1763395866081,11.87558504,135.47,135.42,11.87558504]
[1763395866289,5.78428148,135.48,135.45,11.87558504]
[1763395866290,5.08428148,135.46,135.45,11.87558504]
[1763395866453,0.72,135.47,135.44,11.87558504]
[1763395866652,0.72,135.48,135.44,11.87558504]
[1763395866854,5.07660133,135.47,135.43,11.87558504]
[1763395867089,5.07660133,135.47,135.44,11.87558504]
[1763395867309,0.72,135.46,135.43,11.87558504]
[1763395867591,5.07738219,135.45,135.43,11.87558504]
[1763395867795,4.54,135.44,135.43,11.87558504]
[1763395867986,4.54,135.44,135.41,1.93593088]
[1763395868299,5.26,135.44,135.43,11.87558504]
[1763395868461,4.54,135.44,135.43,11.87558504]
[1763395868664,0.72,135.48,135.43,21.66441273]
[1763395868886,0.72,135.48,135.43,9.78882769]
[1763395869087,0.72,135.48,135.42,9.78882769]
[1763395869268,0.72,135.48,135.47,11.87558504]
[1763395869676,4.54,135.49,135.47,11.87558504]
[1763395869990,0.72,135.48,135.41,1.93593088]
[1763395870192,5.80193681,135.48,135.45,11.87558504]
[1763395870365,5.08193681,135.47,135.45,11.87558504]
[1763395870569,5.80193681,135.47,135.41,1.93593088]
[1763395870876,11.87558504,135.42,135.41,0.13593088]
[1763395871195,9.6231933,135.42,135.41,0.13593088]
[1763395871503,10.2431933,135.42,135.41,0.13593088]
[1763395871672,22.11877834,135.42,135.41,0.03593088]
[1763395872292,10.2431933,135.42,135.41,0.03593088]
[1763395872498,5.0831933,135.42,135.41,0.03593088]
[1763395872681,16.41558504,135.45,135.41,11.91151592]
[1763395872880,18.12096,135.49,135.41,11.91151592]
[1763395872881,0.52,135.5,135.44,11.87558504]
[1763395873203,0.52,135.5,135.42,0.71]
[1763395873204,5.06,135.54,135.46,9.78882769]
[1763395873448,5.07555506,135.53,135.42,0.71]
[1763395873692,12.39558504,135.52,135.43,0.71]
[1763395873865,11.87558504,135.5,135.45,11.87558504]
[1763395874066,11.87558504,135.48,135.41,0.03593088]
[1763395874267,5.07574765,135.47,135.44,11.87558504]
[1763395874470,12.39558504,135.49,135.42,0.71]
[1763395874471,4.54,135.48,135.46,11.87558504]
[1763395874879,5.06,135.48,135.42,0.71]
[1763395875091,5.07522685,135.47,135.43,11.87558504]
[1763395875389,5.07522685,135.47,135.41,0.03593088]
[1763395875390,11.87558504,135.46,135.42,11.87558504]
[1763395875592,5.07511095,135.45,135.41,0.03593088]
[1763395875775,17.47069599,135.45,135.41,0.03593088]
[1763395875978,5.07511095,135.44,135.41,0.03593088]
[1763395876196,4.54,135.43,135.42,11.87558504]
[1763395876380,4.54,135.44,135.42,12.58558504]
[1763395876579,4.54,135.44,135.41,0.03593088]
[1763395876580,4.54,135.48,135.43,12.58558504]
[1763395876780,4.54,135.48,135.41,0.03593088]
[1763395876970,5.07897076,135.47,135.44,11.87558504]
[1763395877294,4.54,135.48,135.46,11.87558504]
[1763395877497,4.54,135.47,135.45,11.87558504]
[1763395877871,4.54,135.47,135.46,11.87558504]
[1763395878168,21.4694367,135.54,135.46,12.58558504]
[1763395878388,5.95404728,135.59,135.52,11.87558504]
[1763395878389,9.62458588,135.53,135.52,11.87558504]
[1763395878597,4.54,135.57,135.52,11.87558504]
[1763395878792,4.54,135.57,135.56,11.87558504]
[1763395879298,10.1474703,135.57,135.53,11.87558504]
[1763395879500,4.54,135.57,135.54,11.87558504]
[1763395879684,4.54,135.57,135.55,11.87558504]
[1763395879879,4.54,135.57,135.51,0.71]
[1763395880195,4.54,135.57,135.56,11.87558504]
[1763395880708,5.06,135.57,135.49,0.71]
[1763395880990,16.96298386,135.56,135.51,11.87558504]
[1763395881299,11.87558504,135.56,135.51,11.87558504]
[1763395881483,5.06,135.57,135.49,11.87558504]
[1763395881484,11.87558504,135.54,135.49,11.87558504]
[1763395881680,11.87558504,135.53,135.49,11.87558504]
[1763395881987,22.66096,135.57,135.46,11.87558504]
[1763395881988,4.54,135.52,135.46,11.87558504]
[1763395882295,4.54,135.51,135.48,11.87558504]
[1763395882496,4.54,135.51,135.47,0.71]
[1763395882497,4.54,135.51,135.5,11.87558504]
[1763395883066,4.54,135.51,135.47,0.71]
[1763395883370,9.59385166,135.59,135.51,9.78882769]
[1763395883371,4.54,135.59,135.51,9.78882769]
[1763395883572,4.54,135.59,135.57,11.87558504]
[1763395883782,4.54,135.59,135.54,11.87558504]
[1763395883783,16.41558504,135.59,135.54,11.87558504]
[1763395883999,16.93558504,135.59,135.54,11.87558504]
[1763395884288,4.54,135.59,135.56,11.87558504]
[1763395884691,16.41558504,135.59,135.52,0.71]
[1763395884893,4.54,135.59,135.55,11.87558504]
[1763395885195,4.54,135.59,135.56,11.87558504]
[1763395885407,16.41558504,135.59,135.54,11.87558504]
[1763395885609,11.87558504,135.57,135.52,11.87558504]
[1763395885901,0.52,135.58,135.53,11.87558504]
[1763395886200,16.41558504,135.59,135.54,11.87558504]
[1763395886390,4.54,135.59,135.56,11.87558504]
[1763395886984,4.54,135.59,135.58,11.87558504]
[1763395887184,17.74,135.64,135.58,12.58558504]
[1763395887376,4.54,135.63,135.6,11.87558504]
[1763395887701,4.54,135.63,135.59,11.87558504]
[1763395887902,16.41558504,135.63,135.59,11.87558504]
[1763395888280,16.41558504,135.63,135.56,0.71]
[1763395888604,16.41558504,135.63,135.59,11.87558504]
[1763395888793,4.54,135.63,135.59,11.87558504]
[1763395889603,16.41558504,135.63,135.59,11.87558504]
[1763395889902,16.41558504,135.63,135.58,11.87558504]
[1763395890077,16.41558504,135.63,135.59,11.87558504]
[1763395890387,16.41558504,135.63,135.57,0.71]
[1763395890581,16.41558504,135.63,135.59,11.87558504]
[1763395890582,4.54,135.63,135.59,11.87558504]
[1763395890788,4.54,135.63,135.6,11.87558504]
[1763395890984,4.54,135.63,135.57,0.71]
[1763395891182,4.54,135.63,135.59,11.87558504]
[1763395891493,16.41558504,135.63,135.55,9.78882769]
[1763395891694,11.87558504,135.62,135.57,11.87558504]
[1763395892001,4.54,135.63,135.57,11.87558504]
[1763395892191,4.54,135.63,135.58,11.87558504]
[1763395892385,0.52,135.67,135.61,11.87558504]
[1763395892681,0.52,135.67,135.63,11.87558504]
[1763395892682,4.54,135.66,135.63,11.87558504]
[1763395892895,4.54,135.66,135.62,11.87558504]
[1763395893075,4.54,135.66,135.63,11.87558504]
[1763395893276,4.54,135.66,135.65,11.87558504]
[1763395893490,0.2,135.7,135.65,11.87558504]
[1763395893491,4.74,135.7,135.65,11.87558504]
[1763395893689,4.74,135.7,135.62,9.78882769]
[1763395893690,4.74,135.7,135.67,11.87558504]
[1763395894108,16.61558504,135.7,135.59,0.73751751]
[1763395894307,11.87558504,135.68,135.61,0.71]
[1763395894508,11.87558504,135.65,135.61,11.87558504]
[1763395894706,4.54,135.64,135.62,12.58558504]
[1763395895022,4.54,135.65,135.63,11.87558504]
[1763395895517,4.54,135.69,135.65,9.78882769]
[1763395895813,4.54,135.69,135.64,0.71]
[1763395896021,4.54,135.69,135.66,11.87558504]
[1763395896222,4.54,135.69,135.65,12.58558504]
[1763395896398,4.54,135.69,135.66,11.87558504]
[1763395896595,4.54,135.69,135.66,12.54558504]
[1763395897710,4.54,135.69,135.64,9.78882769]
[1763395897711,4.54,135.69,135.68,9.78882769]
[1763395897909,0.2,135.7,135.68,21.66441273]
[1763395898111,0.2,135.7,135.69,12.54558504]
[1763395899212,0.2,135.7,135.63,34.53654504]
[1763395899213,0.2,135.7,135.67,11.87558504]
[1763395899515,0.2,135.7,135.66,0.67]
[1763395899516,0.2,135.7,135.68,11.87558504]
[1763395899686,0.2,135.7,135.66,0.67]
[1763395899886,0.2,135.7,135.67,11.87558504]
[1763395900112,0.2,135.7,135.68,21.66441273]
[1763395900522,0.2,135.7,135.69,12.54558504]
[1763395900709,0.2,135.7,135.69,0.67]
[1763395901419,0.2,135.7,135.68,21.66441273]
[1763395901724,0.2,135.7,135.69,0.67]
[1763395901922,0.2,135.7,135.68,0.67]
[1763395902109,0.2,135.7,135.69,0.67]
[1763395902295,0.2,135.7,135.68,21.66441273]
[1763395902613,0.2,135.7,135.66,9.78882769]
[1763395902913,0.2,135.7,135.67,11.87558504]
[1763395903093,0.2,135.7,135.68,11.87558504]
[1763395903294,0.2,135.7,135.69,11.87558504]
[1763395903495,0.2,135.7,135.69,12.54558504]
[1763395904295,0.2,135.7,135.69,22.33441273]
[1763395908631,0.2,135.7,135.69,0.67]
[1763395908835,0.2,135.7,135.69,22.33441273]
[1763395910034,0.2,135.7,135.69,41.19234671]
[1763395910231,0.2,135.72,135.71,9.78882769]
[1763395910432,0.2,135.74,135.71,0.67]
[1763395910631,0.2,135.74,135.72,11.87558504]
[1763395910939,0.2,135.74,135.73,11.87558504]
[1763395911611,0.2,135.74,135.73,12.54558504]
[1763395912038,0.2,135.74,135.73,21.66441273]
[1763395912407,0.2,135.74,135.73,22.33441273]
[1763395913310,0.2,135.74,135.73,10.45882769]
[1763395913516,0.2,135.74,135.73,22.33441273]
[1763395914019,0.2,135.74,135.63,11.87558504]
[1763395914218,0.2,135.74,135.72,11.87558504]
[1763395914420,0.2,135.74,135.73,21.66441273]
[1763395914827,0.2,135.74,135.73,22.33441273]
[1763395918643,0.2,135.74,135.72,11.87558504]
[1763395919146,0.2,135.74,135.73,12.54558504]
[1763395919317,0.2,135.74,135.73,22.33441273]
[1763395920418,0.7,135.83,135.74,9.78882769]
[1763395920616,0.7,135.83,135.73,35.94330183]
[1763395920617,11.87558504,135.81,135.75,0.67]
[1763395920822,0.7,135.8,135.76,11.87558504]
[1763395921555,0.7,135.8,135.63,45.43551418]
[1763395921556,11.87558504,135.77,135.63,45.43551418]
[1763395921732,11.87558504,135.75,135.69,11.87558504]
[1763395921916,12.57558504,135.74,135.69,11.87558504]
[1763395922119,11.87558504,135.72,135.64,0.67]
[1763395922427,11.87558504,135.72,135.65,11.87558504]
[1763395922428,11.87558504,135.7,135.65,11.87558504]
[1763395922625,4.54,135.72,135.59,0.67]
[1763395922626,11.87558504,135.67,135.59,0.67]
[1763395922938,0.7,135.69,135.63,11.87558504]
[1763395923139,11.87558504,135.67,135.6,0.67]
[1763395923440,5.00700247,135.66,135.62,11.87558504]
[1763395923638,11.87558504,135.67,135.62,11.87558504]
[1763395923817,21.13452185,135.72,135.6,11.87558504]
[1763395923818,12.57558504,135.65,135.6,11.87558504]
[1763395924014,16.88835368,135.64,135.59,11.87558504]
[1763395924243,12.57558504,135.65,135.6,11.87558504]
[1763395924744,0.7,135.64,135.59,9.78882769]
[1763395924946,5.24,135.66,135.59,0.67]
[1763395925139,5.24,135.66,135.62,11.87558504]
[1763395925449,4.54,135.66,135.63,11.87558504]
[1763395925814,4.54,135.66,135.62,11.87558504]
[1763395926243,4.54,135.66,135.55,0.73773515]
[1763395926244,11.87558504,135.63,135.55,0.67]
[1763395926543,5.71589014,135.65,135.57,11.87558504]
[1763395926544,11.87558504,135.62,135.57,11.87558504]
[1763395926720,11.87558504,135.63,135.58,11.87558504]
[1763395926923,8.28358988,135.64,135.59,7.56358988]
[1763395927234,12.58429082,135.63,135.59,7.56358988]
[1763395927415,0.72,135.69,135.62,17.35241757]
[1763395927620,5.02716411,135.68,135.65,7.56358988]
[1763395927864,7.56358988,135.73,135.67,7.56358988]
[1763395928021,0.72,135.75,135.7,7.56358988]
[1763395928224,5.02896148,135.74,135.72,7.56358988]
[1763395928522,5.75414183,135.73,135.68,9.78882769]
[1763395928750,5.03385491,135.72,135.67,10.49882769]
[1763395929046,7.56358988,135.74,135.7,7.56358988]
[1763395929226,5.03360468,135.73,135.7,7.56358988]
[1763395929423,5.03360468,135.72,135.69,7.56358988]
[1763395929845,7.56358988,135.74,135.69,7.56358988]
[1763395930026,5.75303798,135.73,135.69,7.56358988]
[1763395930240,5.03303798,135.72,135.69,7.56358988]
[1763395930743,5.03303798,135.71,135.7,7.56358988]
[1763395930926,12.10358988,135.76,135.68,8.27358988]
[1763395931127,12.10358988,135.76,135.64,22.66096]
[1763395931128,7.56358988,135.74,135.65,9.78882769]
[1763395931347,5.0373626,135.73,135.69,7.56358988]
[1763395931535,5.0373626,135.72,135.69,7.56358988]
[1763395931737,7.56358988,135.74,135.69,7.56358988]
[1763395932049,5.76169322,135.73,135.67,17.35241757]
[1763395932253,5.04169322,135.72,135.69,7.56358988]
[1763395932556,7.56358988,135.74,135.69,8.27358988]
[1763395932754,5.04491104,135.73,135.69,7.56358988]
[1763395932932,5.76491104,135.73,135.67,10.49882769]
[1763395933134,5.04491104,135.72,135.68,7.56358988]
[1763395933352,5.04491104,135.71,135.67,7.56358988]
[1763395933550,5.04491104,135.71,135.67,8.27358988]
[1763395933861,5.04491104,135.71,135.68,7.56358988]
[1763395934065,5.04491104,135.71,135.7,7.56358988]
[1763395934270,8.28358988,135.74,135.67,0.71]
[1763395934437,5.04436796,135.73,135.69,7.56358988]
[1763395934639,5.04436796,135.73,135.66,0.71]
[1763395934640,5.04436796,135.73,135.71,7.56358988]
[1763395934957,5.04890053,135.72,135.7,7.56358988]
[1763395935176,7.56358988,135.75,135.7,7.56358988]
[1763395935338,5.04818761,135.74,135.7,7.56358988]
[1763395935667,5.76818761,135.74,135.7,7.56358988]
[1763395935832,5.04818761,135.73,135.71,7.56358988]
[1763395936035,12.10358988,135.76,135.68,0.71]
[1763395936235,5.76629296,135.75,135.71,7.56358988]
[1763395936435,5.04629296,135.74,135.71,7.56358988]
[1763395936841,12.10358988,135.76,135.71,7.56358988]
[1763395937041,5.76612818,135.75,135.71,7.56358988]
[1763395937279,12.60971806,135.74,135.69,17.35241757]
[1763395937462,8.23358988,135.75,135.7,7.56358988]
[1763395937638,5.05128758,135.74,135.69,9.78882769]
[1763395937839,7.56358988,135.75,135.69,9.78882769]
[1763395938041,5.05187803,135.74,135.7,7.56358988]
[1763395938242,5.05187803,135.74,135.66,22.66096]
[1763395938243,5.05187803,135.74,135.66,4.54]
[1763395938571,7.56358988,135.72,135.68,7.56358988]
[1763395938778,5.05187803,135.71,135.66,0.71]
[1763395938970,17.82546791,135.71,135.66,7.56358988]
[1763395939169,12.77358988,135.71,135.66,7.56358988]
[1763395939370,0.67,135.7,135.66,7.56358988]
[1763395939592,5.7230356,135.7,135.66,7.56358988]
[1763395939889,13.28662548,135.7,135.65,17.35241757]
[1763395940182,0.67,135.7,135.66,7.56358988]
[1763395940389,0.67,135.69,135.62,5.25]
[1763395940687,0.67,135.69,135.62,7.56358988]
[1763395940688,7.56358988,135.66,135.62,7.56358988]
[1763395940990,0.67,135.66,135.62,7.56358988]
[1763395941179,5.21,135.66,135.62,7.56358988]
[1763395941360,12.77358988,135.66,135.61,7.56358988]
[1763395941874,0.67,135.65,135.61,7.56358988]
[1763395942463,8.23358988,135.65,135.6,7.56358988]
[1763395942887,0.67,135.64,135.6,7.56358988]
[1763395943393,8.23358988,135.64,135.58,10.49882769]
[1763395943592,8.23358988,135.64,135.6,7.56358988]
[1763395943890,8.23358988,135.64,135.5,0.73800738]
[1763395943891,7.56358988,135.61,135.45,36.1809572]
[1763395944092,7.56358988,135.6,135.52,7.56358988]
[1763395944293,12.7210792,135.59,135.54,7.56358988]
[1763395944469,7.56358988,135.59,135.55,7.56358988]
[1763395944773,7.56358988,135.59,135.54,17.35241757]
[1763395945093,8.23358988,135.6,135.55,7.56358988]
[1763395945293,7.56358988,135.57,135.49,0.71]
[1763395945476,12.10358988,135.56,135.51,7.56358988]
[1763395945878,12.77358988,135.56,135.51,8.27358988]
[1763395946080,12.77358988,135.56,135.51,0.71]
[1763395946081,4.54,135.56,135.51,0.71]
[1763395946298,8.23358988,135.55,135.49,18.83096]
[1763395946477,4.54,135.56,135.52,7.56358988]
[1763395946795,4.54,135.56,135.5,10.49882769]
[1763395946992,4.54,135.56,135.52,7.56358988]
[1763395947197,7.56358988,135.55,135.46,4.54]
[1763395947371,7.56358988,135.55,135.46,0.71]
[1763395947372,7.56358988,135.52,135.46,0.71]
[1763395947578,7.56358988,135.52,135.48,7.56358988]
[1763395947897,8.23358988,135.52,135.47,7.56358988]
[1763395948099,4.54,135.56,135.48,7.56358988]
[1763395948100,7.56358988,135.53,135.48,7.56358988]
[1763395948301,4.54,135.56,135.46,0.71]
[1763395948477,4.54,135.56,135.51,7.56358988]
[1763395948681,7.56358988,135.55,135.51,7.56358988]
[1763395949072,8.23358988,135.55,135.51,7.56358988]
[1763395949396,7.56358988,135.53,135.45,10.59882769]
[1763395949599,0.67,135.55,135.5,7.56358988]
[1763395949766,8.23358988,135.55,135.51,7.56358988]
[1763395949967,8.23358988,135.55,135.5,7.56358988]
[1763395950474,4.54,135.56,135.51,8.27358988]
[1763395950673,18.12096,135.59,135.54,7.56358988]
[1763395950674,8.23358988,135.59,135.54,7.56358988]
[1763395950888,104.7,135.67,135.52,9.78882769]
[1763395950889,0.67,135.61,135.56,7.56358988]
[1763395951099,4.54,135.6,135.57,7.56358988]
[1763395951472,5.21,135.61,135.58,7.56358988]
[1763395951796,0.67,135.61,135.58,7.56358988]
[1763395952004,4.54,135.62,135.59,7.56358988]
[1763395952173,4.54,135.62,135.61,7.56358988]
[1763395952372,4.54,135.62,135.57,9.78882769]
[1763395952612,4.54,135.62,135.57,0.71]
[1763395952908,5.21,135.62,135.58,7.56358988]
[1763395953071,5.21,135.62,135.59,7.56358988]
[1763395953599,8.23358988,135.61,135.55,0.71]
[1763395953803,7.56358988,135.6,135.55,7.56358988]
[1763395954016,0.67,135.59,135.55,7.56358988]
[1763395954538,4.54,135.62,135.56,7.56358988]
[1763395954812,7.56358988,135.61,135.57,7.56358988]
[1763395955191,4.54,135.62,135.59,7.56358988]
[1763395955414,4.54,135.62,135.57,0.71]
[1763395955591,12.10358988,135.62,135.58,7.56358988]
[1763395956017,12.77358988,135.62,135.58,7.56358988]
[1763395956211,5.21,135.62,135.58,7.56358988]
[1763395956601,5.21,135.62,135.59,7.56358988]
[1763395956602,4.54,135.62,135.59,7.56358988]
[1763395956794,5.24,135.62,135.56,9.78882769]
[1763395957113,5.24,135.62,135.58,7.56358988]
[1763395957719,7.56358988,135.6,135.55,7.56358988]
[1763395957937,7.56358988,135.59,135.54,7.56358988]
[1763395958107,4.54,135.62,135.52,7.56358988]
[1763395958108,7.56358988,135.57,135.52,7.56358988]
[1763395958296,12.10358988,135.56,135.52,7.56358988]
[1763395958497,12.10358988,135.56,135.51,0.72]
[1763395958498,12.10358988,135.56,135.51,7.56358988]
[1763395958803,4.54,135.56,135.52,7.56358988]
[1763395959105,12.80358988,135.56,135.51,7.56358988]
[1763395959412,0.7,135.55,135.51,7.56358988]
[1763395959593,12.10358988,135.56,135.53,7.56358988]
[1763395959594,4.54,135.56,135.53,7.56358988]
[1763395959790,4.54,135.56,135.52,7.56358988]
[1763395960013,12.80358988,135.56,135.52,7.56358988]
[1763395960315,8.26358988,135.55,135.5,7.56358988]
[1763395961015,12.10358988,135.56,135.51,8.28358988]
[1763395961222,12.80358988,135.56,135.52,7.56358988]
[1763395962308,4.54,135.56,135.54,7.56358988]
[1763395962620,4.54,135.56,135.55,7.56358988]
[1763395963118,4.54,135.56,135.53,0.72]
[1763395963300,4.54,135.56,135.54,7.56358988]
[1763395963701,4.54,135.56,135.55,7.56358988]
[1763395964423,5.24,135.63,135.56,9.78882769]
[1763395964721,5.24,135.63,135.59,7.56358988]
[1763395965021,12.80358988,135.63,135.56,10.50882769]
[1763395965227,12.80358988,135.63,135.58,7.56358988]
[1763395965519,4.54,135.63,135.59,7.56358988]
[1763395965696,4.54,135.63,135.6,7.56358988]
[1763395965900,5.83013016,135.62,135.58,7.56358988]
[1763395966338,0.7,135.62,135.58,7.56358988]
[1763395966823,12.10358988,135.63,135.59,7.56358988]
[1763395967224,13.39704237,135.62,135.57,7.56358988]
[1763395967424,12.69704237,135.61,135.57,7.56358988]
[1763395967612,0.7,135.62,135.57,0.72]
[1763395967799,5.83332889,135.62,135.58,7.56358988]
[1763395968126,8.26358988,135.62,135.57,7.56358988]
[1763395968324,8.26358988,135.61,135.57,7.56358988]
[1763395968505,7.56358988,135.61,135.57,7.56358988]
[1763395968727,7.56358988,135.62,135.57,7.56358988]
[1763395968928,0.7,135.62,135.58,7.56358988]
[1763395969130,12.69533397,135.62,135.58,7.56358988]
[1763395969322,0.7,135.61,135.58,7.56358988]
[1763395969532,103.4,135.61,135.58,7.56358988]
[1763395969945,102.7,135.61,135.58,7.56358988]
[1763395971220,103.4,135.61,135.58,7.56358988]
[1763395971422,102.7,135.61,135.58,7.56358988]
[1763395971841,102.7,135.61,135.56,0.72]
[1763395972041,7.56358988,135.59,135.53,9.78882769]
[1763395972241,4.54,135.58,135.55,7.56358988]
[1763395972615,4.54,135.58,135.56,7.56358988]
[1763395973544,4.54,135.58,135.55,7.56358988]
[1763395974051,4.54,135.58,135.55,8.28358988]
[1763395974352,4.54,135.58,135.56,7.56358988]
[1763395975123,4.54,135.58,135.53,0.72]
[1763395975323,4.54,135.58,135.55,7.56358988]
[1763395975828,4.54,135.58,135.45,5.3782798]
[1763395975829,8.26358988,135.57,135.5,9.78882769]
[1763395976030,8.26358988,135.57,135.53,7.56358988]
[1763395976231,12.80358988,135.58,135.54,7.56358988]
[1763395976950,0.7,135.57,135.54,7.56358988]
[1763395977131,0.7,135.57,135.53,7.56358988]
[1763395977322,4.54,135.58,135.54,7.56358988]
[1763395977522,12.10358988,135.58,135.54,8.28358988]
[1763395977944,4.54,135.58,135.55,7.56358988]
[1763395978119,5.24,135.58,135.55,7.56358988]
[1763395978325,0.7,135.57,135.54,7.56358988]
[1763395978627,12.10358988,135.58,135.54,7.56358988]
[1763395978827,12.80358988,135.58,135.54,7.56358988]
[1763395979451,12.80358988,135.58,135.54,8.28358988]
[1763395979639,4.54,135.58,135.57,7.56358988]
[1763395980051,4.54,135.58,135.56,7.56358988]
[1763395980275,9.59385166,135.63,135.57,7.56358988]
[1763395980452,106.90909108,135.67,135.62,7.56358988]
[1763395980453,0.7,135.67,135.62,7.56358988]
[1763395980658,10.36454758,135.67,135.59,9.78882769]
[1763395980965,12.68813746,135.66,135.59,10.50882769]
[1763395981166,12.68813746,135.65,135.61,7.56358988]
[1763395981355,5.12728599,135.64,135.61,7.56358988]
[1763395981553,0.7,135.65,135.62,7.56358988]
[1763395981759,5.12711505,135.66,135.63,7.56358988]
[1763395981960,5.12711505,135.66,135.6,0.72]
[1763395982382,4.54,135.67,135.61,9.78882769]
[1763395982383,0.7,135.65,135.61,9.78882769]
[1763395982677,18.12096,135.59,135.51,9.78882769]
[1763395982871,9.66818496,135.58,135.51,7.56358988]
[1763395983073,5.12818496,135.57,135.52,0.72]
[1763395983382,0.7,135.62,135.53,7.56358988]
[1763395983383,4.54,135.58,135.53,7.56358988]
[1763395983676,4.54,135.61,135.52,0.72]
[1763395983854,5.13382109,135.6,135.53,9.78882769]
[1763395984056,12.69741097,135.6,135.52,0.72]
[1763395984256,13.39741097,135.59,135.54,7.56358988]
[1763395984455,7.56358988,135.56,135.5,0.72]
[1763395984658,7.56358988,135.52,135.47,44.19690393]
[1763395984852,9.67382109,135.55,135.47,44.19690393]
[1763395984853,4.54,135.55,135.47,44.19690393]
[1763395985050,7.56358988,135.51,135.47,8.28358988]
[1763395985254,4.54,135.5,135.47,8.28358988]
[1763395985551,4.54,135.5,135.47,7.56358988]
[1763395985769,4.54,135.5,135.47,8.28358988]
[1763395986269,4.54,135.5,135.46,36.36285376]
[1763395986572,12.10358988,135.54,135.49,7.56358988]
[1763395986771,21.53671354,135.53,135.49,11.86881122]
[1763395986947,5.12790232,135.52,135.49,11.86881122]
[1763395987707,5.12790232,135.52,135.5,12.58881122]
[1763395987991,4.54,135.53,135.49,9.78882769]
[1763395988195,5.12154462,135.52,135.49,12.58881122]
[1763395988858,5.12154462,135.52,135.47,10.50882769]
[1763395989060,12.52881122,135.51,135.45,9.88882769]
[1763395989294,11.86881122,135.46,135.45,0.1]
[1763395989463,21.5193617,135.46,135.45,0.1]
[1763395989656,26.90511756,135.46,135.45,0.1]
[1763395990297,38.77392878,135.46,135.41,0.03593088]
[1763395990481,12.52881122,135.42,135.41,0.03593088]
[1763395990793,9.65055048,135.42,135.41,0.03593088]
[1763395990959,21.5193617,135.42,135.41,0.03593088]
[1763395991280,22.1793617,135.42,135.41,0.03593088]
[1763395991673,4.54,135.44,135.41,0.75593088]
[1763395992053,4.54,135.44,135.43,21.65763891]
[1763395992254,5.36263191,135.53,135.43,57.78581568]
[1763395992489,5.36263191,135.53,135.41,18.87689088]
[1763395992490,21.4938679,135.52,135.48,9.78882769]
[1763395992695,5.08505668,135.51,135.48,9.78882769]
[1763395992894,4.54,135.52,135.49,11.86881122]
[1763395993060,4.54,135.52,135.5,0.72]
[1763395993262,11.86881122,135.56,135.51,21.65763891]
[1763395993478,4.54,135.56,135.52,12.58881122]
[1763395993868,16.40881122,135.56,135.53,0.72]
[1763395994373,16.95073355,135.55,135.51,10.50882769]
[1763395994569,16.95073355,135.55,135.44,18.12096]
[1763395994570,11.86881122,135.53,135.49,9.78882769]
[1763395994882,11.86881122,135.53,135.5,0.72]
[1763395995089,4.54,135.52,135.5,0.72]
[1763395995595,4.54,135.52,135.5,12.58881122]
[1763395995777,4.54,135.52,135.51,9.78882769]
[1763395995979,4.54,135.52,135.51,22.37763891]
[1763395996312,4.54,135.52,135.48,0.72]
[1763395996598,4.54,135.52,135.51,10.50882769]
[1763395996771,4.54,135.52,135.5,11.86881122]
[1763395996973,4.54,135.52,135.47,11.86881122]
[1763395997293,4.54,135.52,135.49,9.78882769]
[1763395997464,4.54,135.52,135.49,21.65763891]
[1763395997669,4.54,135.52,135.5,0.72]
[1763395998102,4.54,135.52,135.5,12.58881122]
[1763395998271,4.54,135.52,135.51,0.72]
[1763395998692,16.40881122,135.52,135.47,0.72]
[1763395998903,16.40881122,135.52,135.46,9.78882769]
[1763395998904,4.54,135.52,135.49,9.78882769]
[1763395999198,4.54,135.52,135.5,21.65763891]
[1763395999406,4.54,135.52,135.51,10.50882769]
[1763395999580,4.54,135.52,135.5,0.72]
[1763396000078,11.86881122,135.51,135.47,0.72]
[1763396000273,4.54,135.52,135.47,12.58881122]
[1763396000274,16.40881122,135.52,135.47,12.58881122]
[1763396000471,11.86881122,135.51,135.48,9.78882769]
[1763396000691,11.86881122,135.5,135.46,37.08285376]
[1763396000999,11.86881122,135.5,135.46,36.36285376]
[1763396001191,11.86881122,135.48,135.45,36.0809572]
[1763396001498,4.54,135.47,135.46,36.36285376]